Workbook

Sheet Instructions
A1: Instructions for GFR spreadsheet
A3: * | B3: Customize site specific parameters in the "Settigs" tab and or by editing the "Results" tab formatting.
A4: 1 | B4: Process patient exam data in the "Results" tab:
A5: 2 | B5: Enter Patient Name, ID, Height, Weight, Date, Performing site and protocol in the first frame.
B6: - | C6: The patient BSA is calculated automatically according to The Dupuis formula.
A7: 3 | B7: Prepare Tc-99m DTPA patient dose:
B8: - | C8: 370MBq (10 mCi) with imaging
B9: - | C9: 37 MBq (1 mCi) without imaging
A10: 4 | B10: Accurately assay the syringe, with needle to be used for injection, in the calibrator and record in the second frame.
A11: 5 | B11: Inject dose and record time of injection in third frame.
B12: - | C12: If with imaging, injection should be perfomed on scanner bed with start of image acquisition.
A13: 6 | B13: Measure the residual activity in the syringe and record along with time in the second frame.
A14: 7 | B14: Image injection site to ensure venous injection
A15: 8 | B15: Withdraw blood samples of 9 to 10 ml at 2, 3, and 4 hours post-injection. Record the times in third frame. Elapsed times from injection are calculated automatically.
A16: 9 | B16: Centrifuge the blood samples at >2000 g for 10 or until plasma separation is achieved.
A17: 10 | B17: For diultion standard preparation:
B18: - | C18: Measure approximately 12.5 MBq (1/3 mCi) Tc-99m Pertechnetate activity in a syringe and record the time in the second frame.
B19: - | C19: =_xlfn.CONCAT("Empty content of syringe into 3/4 full ",Settings!C4, " mL volumetric flask. Measure and record the residual activity in the syringe. Top off the flask and mix vigoruosly.") -> Empty content of syringe into 3/4 full 500 mL volumetric flask. Measure and record the residual activity in the syringe. Top off the flask and mix vigoruosly.
A20: 11 | B20: =_xlfn.CONCAT("Pipet two duplicate ", Settings!C5, " µL samples into scintilator counter vials for each of the following:") -> Pipet two duplicate 100 µL samples into scintilator counter vials for each of the following:
B21: - | C21: Dilution standard
B22: - | C22: 2 hour plasma
B23: - | C23: 3 hour plasma
B24: - | C24: 4 hour plasma
A25: 12 | B25: Count the samples along with two background samples in the scintilator counter using the appropriate protocol. Enter the counts in the forth frame.
A26: 13 | B26: Enter the time of sample counting in the third frame and indicate if counts were obtained on the following day.
A27: 14 | B27: Ensure that all quality assurance indicator are green check marks. Investigate and correct errors if not.
A28: 15 | B28: The spreadsheet fits these plasma counts to an exponential clearance curve, and calculates counts at To, and the clearance half-life, T1/2. These values are plotted in the graph – check that they are reasonable.
A29: 16 | B29: The spreadsheet also calculates the GFR and the modified GFR according to the formulas indicated. Check that these numbers are sensible and sign off at the bottom.
A30: 17 | B30: Print the "Results" tab for a final report.
A33: References:
A34: [1] | B34: Klein R, et al., An electronic technetium-99m-diethylenetriaminepentaacetic acid glomerular filtration rate spreadsheet with novel embedded quality assurance features. Nucl Med Commun. 2019 Jan;40(1):30-40.
A36: Disclimer:
A37: By using our tool, you agree to these terms and conditions, made between you and the Ottawa Hospital Research Institute and the Ottawa Hospital. The template should be tailored to a clinic's needs and is provided solely as a guidance template. The template is provided as is, with no guarantees or warranties, and its use is at your own risk. It is not a licensed medical device in any jurisdiction. The Ottawa Hospital Research Institute, the Ottawa Hospital, and its researchers, including Ran Klein, expressly disclaim all warranties of any kind regarding this tool, either express or implied, including, without limitation, warranties of title, non-infringement, and implied warranties of merchantability or fitness for a particular purpose. The Ottawa Hospital Research Institute, the Ottawa Hospital, and its researchers, including Ran Klein, will have no liability for any damages, injury or any other loss whatsoever suffered as a result of use of, or reliance upon, this tool. In the case of loss, injury or damage of any kind to a person resulting from your use of this tool, you agree to indemnify and hold harmless the Ottawa Hospital Research Institute, the Ottawa Hospital, and its researchers, including Ran Klein, from any and all claims arising therefrom.

Sheet Results
C1: GLOMERULAR FILTRATION RATE WORKSHEET | L1: Low Error | M1: Low Warn | N1: Reference | O1: High Warn | P1: High Error | Q1: Test value
A2: PATIENT | B2: John, Doe | E2: HEIGHT(cm) | G2: Data Quality Assurance
A3: ID | B3: Patient MRN | E3: WEIGHT(kg)
A4: DATE | B4: =NOW() -> 2019-07-31T11:41:16.490 | E4: BSA (m2) | F4: =0.20247*(F2/100)^0.725*F3^0.425 -> 0 | G4: =IF(OR($Q4<$L4,$Q4>$P4),2,IF(OR($Q4<$M4,$Q4>$O4),1,0)) -> 2 | H4: BSA in range | L4: 0.25 | M4: 0.5 | O4: 3 | P4: 3.5 | Q4: =F4 -> 0
A5: PROTOCOL | B5: GFR with Imaging | E5: SITE | F5: Site 1
A7: Set assay times only if different from injection time. | C7: Patient Dose | E7: Standard | G7: =IF(AND(D9<=C13,C13<=D10),0,2) -> 0 | H7: Injection assay times
C8: Activity (kBq) | D8: Assay Time | E8: Activity (kBq) | F8: Assay Time | G8: =IF(F9<=F10,0,2) -> 0 | H8: Standard assay times
A9: Pre assay | D9: =C13 -> 00:00:00 | F9: =C13 -> 00:00:00 | G9: =IF(OR($Q9<$L9,$Q9>$P9),2,IF(OR($Q9<$M9,$Q9>$O9),1,0)) -> 2 | H9: Injected activity match protocol | L9: =$N9*0.5 -> 185000 | M9: =$N9*0.7 -> 259000 | N9: =IF($B$5="GFR with Imaging",370000,37000) -> 370000 | O9: =$N9*1.5 -> 555000 | P9: =$N9*2 -> 740000 | Q9: =C11 -> 0
A10: Residual assay | D10: =C13 -> 00:00:00 | F10: =C13 -> 00:00:00 | G10: =IF(OR($Q10<$L10,$Q10>$P10),2,IF(OR($Q10<$M10,$Q10>$O10),1,0)) -> 2 | H10: Standard activity match protocol | L10: =N10*0.4 -> 5000 | M10: =N10*0.6 -> 7500 | N10: 12500 | O10: =N10*3 -> 37500 | P10: =N10*6 -> 75000 | Q10: =E11 -> 0
A11: Decayed to Injection | C11: =C9*EXP(-LN(2)/6.01*($C$13-D9)*24)-C10*EXP(-LN(2)/6.01*($C$13-D10)*24) -> 0 | E11: =E9*EXP(-LN(2)/6.01*($C$13-F9)*24)-E10*EXP(-LN(2)/6.01*($C$13-F10)*24) -> 0 | G11: =IF(OR($Q11<$L11,$Q11>$P11),2,IF(OR($Q11<$M11,$Q11>$O11),1,0)) ->  | H11: Injection residual activity | L11: 0 | M11: 0 | N11: 0 | O11: 0.25 | P11: 0.5 | Q11: =C10/C9 -> 
G12: =IF(OR($Q12<$L12,$Q12>$P12),2,IF(OR($Q12<$M12,$Q12>$O12),1,0)) ->  | H12: Standard prep. residual activity | L12: 0 | M12: 0 | N12: 0 | O12: 0.8 | P12: 0.9 | Q12: =E10/E9 -> 
A13: Time of Injection | D13: Injection site:
A14: Time of Plasma 1 (2 hr) | D14: =(C14-C13)*24*60 -> 0 | E14: Min. after injection | G14: =IF(OR($Q14<$L14,$Q14>$P14),2,IF(OR($Q14<$M14,$Q14>$O14),1,0)) -> 2 | L14: =N14-45 -> 75 | M14: =N14-15 -> 105 | N14: 120 | O14: =N14+15 -> 135 | P14: =N14+45 -> 165 | Q14: =D14 -> 0
A15: Time of Plasma 2 (3 hr) | D15: =(C15-C13)*24*60 -> 0 | G15: =IF(OR($Q15<$L15,$Q15>$P15),2,IF(OR($Q15<$M15,$Q15>$O15),1,0)) -> 2 | H15: Sample time match protocol | L15: =N15-45 -> 135 | M15: =N15-15 -> 165 | N15: 180 | O15: =N15+15 -> 195 | P15: =N15+45 -> 225 | Q15: =D15 -> 0
A16: Time of Plasma 3 (4 hr) | D16: =(C16-C13)*24*60 -> 0 | G16: =IF(OR($Q16<$L16,$Q16>$P16),2,IF(OR($Q16<$M16,$Q16>$O16),1,0)) -> 2 | L16: 195 | M16: 225 | N16: 240 | O16: 255 | P16: 285 | Q16: =D16 -> 0
A17: Sample Counting | D17: on same day | F17: =EXACT(D17,"on FOLLOWING day") -> FALSE | G17: =IF(C17+IF(nextDay,24,0)-MAX(F10,C16)>0,0,2) -> 2 | H17: Counting after samples prepared
A19: SAMPLE | B19: Sample 1 | C19: Sample 2 | D19: MEAN-BKGD | E19: % Diff | F19: z-score
B20: (counts) | C20: (counts) | D20: (counts)
A21: Background | D21: =AVERAGE(B21:C21) ->  | F21: =IF(D21=0,0,MAX(0,ABS($C21-$B21))/SQRT($D21)) ->  | G21: =IF(OR($Q21<$L21,$Q21>$P21),2,IF(OR($Q21<$M21,$Q21>$O21),1,0)) ->  | L21: 0 | M21: 0 | N21: 0 | O21: 1.96 | P21: 3.29 | Q21: =F21 -> 
A22: Standard | D22: =AVERAGE(B22:C22)-$D$21 ->  | E22: =ABS(B22-C22)/D22 ->  | F22: =ABS($C22-$B22)/2/SQRT(2*$D22+$D22^2*2*(Settings!$C$9^2+Settings!$C$8^2))/Bonferroni ->  | G22: =IF(OR($Q22<$L22,$Q22>$P22),2,IF(OR($Q22<$M22,$Q22>$O22),1,0)) ->  | L22: 0 | M22: 0 | N22: 0 | O22: 1.96 | P22: 3.29 | Q22: =F22 -> 
A23: Plasma 1 | D23: =AVERAGE(B23:C23)-$D$21 ->  | E23: =ABS(B23-C23)/D23 ->  | F23: =ABS($C23-$B23)/2/SQRT(2*$D23+$D23^2*2*(Settings!$C$9^2+Settings!$C$8^2))/Bonferroni ->  | G23: =IF(OR($Q23<$L23,$Q23>$P23),2,IF(OR($Q23<$M23,$Q23>$O23),1,0)) ->  | H23: Sample 1 and 2 agreement | L23: 0 | M23: 0 | N23: 0 | O23: 1.96 | P23: 3.29 | Q23: =F23 -> 
A24: Plasma 2 | F24: =ABS($C24-$B24)/2/SQRT(2*$D24+$D24^2*2*(Settings!$C$9^2+Settings!$C$8^2))/Bonferroni ->  | G24: =IF(OR($Q24<$L24,$Q24>$P24),2,IF(OR($Q24<$M24,$Q24>$O24),1,0)) ->  | L24: 0 | M24: 0 | N24: 0 | O24: 1.96 | P24: 3.29 | Q24: =F24 -> 
A25: Plasma 3 | F25: =ABS($C25-$B25)/2/SQRT(2*$D25+$D25^2*2*(Settings!$C$9^2+Settings!$C$8^2))/Bonferroni ->  | G25: =IF(OR($Q25<$L25,$Q25>$P25),2,IF(OR($Q25<$M25,$Q25>$O25),1,0)) ->  | L25: 0 | M25: 0 | N25: 0 | O25: 1.96 | P25: 3.29 | Q25: =F25 -> 
A27: Counts at To from graph | D27: =O37 ->  | H27: =IF(OR($Q28<$L28,$Q28>$P28),2,IF(OR($Q28<$M28,$Q28>$O28),1,0)) ->  | I27: Counter-Activity Ratio | L27: 0 | M27: 0 | N27: 0 | O27: 1.96 | P27: 2.58 | Q27: =ABS(I28-HLOOKUP(Site,Settings!C13:D15,2))/HLOOKUP(Site,Settings!C13:D15,3) -> 
A28: Time of T 1/2 from graph (min) | D28: =LN(1/2)/M35 ->  | I28: =D22/(E11*EXP(-LN(2)/6.01*(C17-C13+IF(nextDay,1,0))*24)) ->  | J28: cts/kBq of std. | L28: -0.15 | M28: -0.1 | N28: 0 | O28: 0.1 | P28: 0.15 | Q28: =I29 -> 
I29: =I28/HLOOKUP(F5,Settings!C13:D14,2,FALSE)-1 ->  | J29: Deviation
A30: GFR (mL/min) = | C30: =_xlfn.CONCAT("Std counts x ", _xlfn.NUMBERVALUE(Settings!C4), " mL x ln(2) x patient dose (kBq)") -> Std counts x 500 mL x ln(2) x patient dose (kBq) | H30: =IF(OR($Q30<$L30,$Q30>$P30),2,IF(OR($Q30<$M30,$Q30>$O30),1,0)) ->  | I30: Curve fit | L30: 0.9 | M30: 0.95 | N30: 1 | O30: 1 | P30: 1 | Q30: =I31 -> 
C31: Plasma cts at To x T1/2 x std dose (kBq) | I31: =INDEX(LINEST(LN(D23:D25),D14:D16,TRUE,TRUE),3) ->  | J31: r²
A33: Corrected GFR (mL/min/1.73 m2) = | D33: GFR x 1.73 / BSA
L34: Exponential Regression Plot
L35: Slope (-Lambdah) | M35: =INDEX(LINEST(LN(D23:D25),D14:D16),1) -> 
M36: Time | O36: Counts | P36: Normalized counts
L37: Y intercept | M37: 0 | O37: =EXP(INDEX(LINEST(LN(D23:D25),D14:D16),2)) ->  | P37: =O37/$O$37 -> 
L38: End time | M38: 320 | O38: =O37*EXP(M35*M38) -> 
L39: 50% intercept | M39: =LN(1/2)/M35 ->  | O39: =O37*EXP(M35*D28) -> 
L40: 50% intercept top | M40: =LN(1/2)/M35 ->  | O40: =O37 -> 
L41: Plasma 1 | M41: =D14 -> 0 | O41: =D23 -> 
L42: Plasma 2 | M42: =D15 -> 0 | O42: =D24 -> 
L43: Plasma 3 | M43: =D16 -> 0 | O43: =D25 -> 
L46: GFR | M46: =D22*Settings!C4*LN(2)*C11/(D27*D28*E11) -> 
L47: BSA corrected GFR | M47: =GFR*1.73/F4 -> 
L48: BM & BSA corrected GFR | M48: =1.0004*BSA_corrected_GFR-0.00146*BSA_corrected_GFR^2 -> 
L50: Revisions
L51: 2018-05-02 | M51: Template as supplemental material in NMC, 2019, 40(1):30-40
L52: 2019-02-27 | M52: Addition of Brochner-Mortensen correction.
B53: =CONCATENATE("GFR: ",TEXT(GFR,"0")) ->  | C53: ml/min | D53: =MAX(H30,H27,G4:G8,G14:G25,IF(Q9<N9,G9,0),IF(Q10<N10,G10,0)) ->  | E53: =IF(D53=0,"QC tests passed.",IF(D53=1,"QC tests at tolerance.","QA tests failed.")) ->  | I53: Entered by
B54: =CONCATENATE("BSA Corrected GFR: ",TEXT(BSA_corrected_GFR,"0")) ->  | C54: ml/min/1.73m2 | E54: =IF(D53=0,"",IF(D53=1,"Results may be inaccurate.","Results are likely inaccurate.")) ->  | I54: Checked by
B55: =CONCATENATE("BM Corrected GFR: ",TEXT(BM_and_BSA_corrected_GFR,"0")) ->  | C55: ml/min/1.73m2 | I55: Spreadsheet rivision date: 2019-02-27
A56: *BM corrected GFR includes correction for BSA and Brochner-Mortensen corrections for fast exponential using the combined adult and pediatric equation (15) in Fleming JS et al. Nuc Med Comm, 2014;25(8):759–769.

Sheet Settings
B2: Settings
B4: Standard volume | C4: 500 | D4: mL
B5: Pipetting volume | C5: 100 | D5: µL
B7: Pipet Accuracy | C7: 0.008 | D7: From vendor Eppendorf Reference Yellow
B8: Pipet Precision | C8: 0.0015 | D8: http://www.eppendorf.com/int/index.php?pb=611a137f7fd720bc&action=products&contentid=1&catalognode=9477&productpage=3
B9: Pipeting operator precision | C9: 0.01 | D9: Based on pipetting experiement Oct 2015 + 2%
B10: Bonferroni correction | C10: 3
B12: Counter efficiency
B13: Site | C13: Site 1 | D13: Site 2
B14: Mean | C14: 9.81 | D14: 15.25 | E14: cts/kBq
B15: STD | C15: 0.212 | D15: 0.56 | E15: =E14 -> cts/kBq
C16: =C15/C14 -> 0.02161060143 | D16: =D15/D14 -> 0.03672131148
